Cogmind - Beta 12 X4 @@@ ROGUE MODE // 2022.12.08 @ 11:25:25 Player: youngster Result: Destroyed by Y-64 Sentinel with Wave Gun Performance ------------- Evolutions (5) 2500 Regions Visited (17) 3400 Robots Destroyed (266) 1330 Value Destroyed (8595) 8595 Prototype IDs (64) 1280 Alien Tech Used (1) 200 Bonus (1924) 1924 TOTAL SCORE: 19229 Bonus ------- High Alert Combat Kills 1059 Follower Combat Kills 2012 Network Hubs Disabled 200 Met Data Miner 300 Met R17 at Cetus 500 Friendly Fire -2147 Cogmind --------- Core Integrity 0/1000 Matter 236/300 Energy 100/100 System Corruption 13% Temperature Cool (27) Movement Core (50) Location -5/Factory Parts ------- > --- POWER (2) -------- (None) > --- PROPULSION (5) --- (None) > --- UTILITY (7) ------ Advanced Hacking Suite > --- WEAPON (3) ------- (None) > --- INVENTORY (5) ---- Quantum Reactor Huge Storage Unit Advanced Sensor Array Improved Transmission Jammer Rocket Array Peak State ------------ > --- POWER ------------ Quantum Reactor Particle-Quantum Reactor > --- PROPULSION ------- Centrium Heavy Treads Treaded Centrium-FC Exoskeleton > --- UTILITY ---------- Armored Scrap Engine Huge Storage Unit Enhanced Optical Array Improved Signal Interpreter Centrium Medium Armor Plating Improved Hacking Suite > --- WEAPON ----------- Directed Lightning Construct/G Heavy KE Penetrator Construct/C > --- INVENTORY -------- Quantum Reactor Armored Wheel Improved Cooling System High-capacity Matter Pod Advanced Sensor Array Advanced Targeting Computer Transmission Jammer Improved Transmission Jammer Hardened Heavy Armor Plating Centrium Medium Armor Plating Improved Shield Generator Improved Shield Generator Improved Hacking Suite Long-range Tractor Beam Dimensional Node Initializer KE Penetrator Rocket Array Scatter Rocket Array Great Maul [Rating: 127] Favorites ----------- Power Constructs Engine Improved Ion Engine Power Core Light Nuclear Core Reactor Constructs Propulsion Improved Treads Treads Improved Treads Leg Improved Carbon-fiber Leg Wheel Armored Wheel Utility Armored Scrap Engine Device Armored Scrap Engine Storage High-capacity Storage Unit Processor Advanced Visual Processing Unit Hackware Improved Hacking Suite Protection Light Armor Plating Weapon Gauss Rifle Energy Gun Constructs Energy Cannon Heavy Plasma Cannon Ballistic Gun Gauss Rifle Ballistic Cannon Constructs Launcher Improved Grenade Launcher Impact Weapon Great Maul Special Melee Weapon Datajack Build | -11 -10 -9 -9 -9 -8 -8 -7 -7 -7 -7 -6 -6 -6 -6 -6 -6 -5 ------- Run | Scr Mat Mat Min Exi Min Mat Fac Low Low Dat Pro Fac Ext Cet Arc Hub Fac Slots Evolved 10 | . . 2 . . . 2 2 . . . . 2 . . . . 2 Power 1 | . . . . . . . 1 . . . . . . . . . . Propulsion 3 | . . 1 . . . . 1 . . . . 1 . . . . . Utility 5 | . . 1 . . . 1 . . . . . 1 . . . . 2 Weapon 1 | . . . . . . 1 . . . . . . . . . . . Parts Attached 275 | 6 5 45 4 2 7 29 19 5 6 1 20 28 16 19 4 3 56 Power 15 | 1 . 2 . . 1 1 2 . . . 1 1 1 5 . . . Engine 6 | 1 . 2 . . . . 2 . . . 1 . . . . . . Core 5 | . . . . . 1 1 . . . . . 1 1 1 . . . Reactor 4 | . . . . . . . . . . . . . . 4 . . . Propulsion 69 | 2 1 19 1 . . 10 6 . . . 6 4 3 3 1 . 13 Treads 43 | 2 1 19 . . . 5 2 . . . 1 . 3 3 1 . 6 Leg 7 | . . . . . . . 3 . . . 3 . . . . . 1 Wheel 19 | . . . 1 . . 5 1 . . . 2 4 . . . . 6 Hover . | . . . . . . . . . . . . . . . . . . Flight . | . . . . . . . . . . . . . . . . . . Utility 97 | 1 2 9 2 . 2 11 2 . . . . 14 7 6 3 3 35 Device 45 | . . . . . 2 3 1 . . . . 9 5 2 2 2 19 Storage 7 | 1 1 . 1 . . 1 1 . . . . 1 . . . . 1 Processor 4 | . . 1 . . . 1 . . . . . 1 . . . . 1 Hackware 6 | . . . . . . . . . . . . 1 . 1 1 . 3 Protection 35 | . 1 8 1 . . 6 . . . . . 2 2 3 . 1 11 Artifact . | . . . . . . . . . . . . . . . . . . Weapon 94 | 2 2 15 1 2 4 7 9 5 6 1 13 9 5 5 . . 8 Energy Gun 4 | . 1 1 . . . . . . . . 1 . . 1 . . . Energy Cannon 9 | . . . . . . . 1 . . . 5 2 1 . . . . Ballistic Gun 38 | 2 1 9 1 . 3 6 4 2 1 . 3 . 2 2 . . 2 Ballistic Cannon 4 | . . . . . . . . . . . . 4 . . . . . Launcher 23 | . . 2 . 1 1 1 2 2 2 1 4 2 . 1 . . 4 Special Weapon . | . . . . . . . . . . . . . . . . . . Impact Weapon 15 | . . 3 . . . . 2 1 3 . . 1 2 1 . . 2 Slashing Weapon . | . . . . . . . . . . . . . . . . . . Piercing Weapon . | . . . . . . . . . . . . . . . . . . Special Melee Weapon 1 | . . . . 1 . . . . . . . . . . . . . Unidentified Prototypes 12 | . . . . . . 1 . . . . 2 2 . 6 . . 1 Corrupted Parts 1 | . . . . . . . . . . . . . . 1 . . . System Corruption 2 | . . . . . . . . . . . . . . 2 . . . Parts Lost 43 | . 2 4 . . . 1 1 1 . . 11 1 1 . 3 . 18 Power 8 | . . 1 . . . . . 1 . . 2 1 . . 1 . 2 Propulsion 15 | . . . . . . . 1 . . . 3 . 1 . 2 . 8 Utility 9 | . . 2 . . . 1 . . . . 2 . . . . . 4 Weapon 11 | . 2 1 . . . . . . . . 4 . . . . . 4 Highest Loss Streak 10 | . 1 2 . . . 1 1 1 . . 10 1 1 . 2 . 8 To Critical Strikes 1 | . . . . . . . . . . . . . . . . . 1 Average Slot Usage (%) 89 | . 99 98 100 87 100 99 87 87 91 84 74 82 86 77 66 66 61 Engine 6 | . 14 11 11 11 1 . 8 10 7 7 5 10 6 2 . . . Core 3 | . . . . . 9 9 3 . 6 7 4 1 6 2 . . . Reactor 1 | . . . . . . . . . . . . . . 8 12 13 8 Treads 18 | . 27 32 26 22 22 18 25 7 7 7 4 7 12 12 6 13 8 Leg 3 | . . . . . . . 1 23 23 23 15 . 3 6 4 . . Wheel 4 | . . . 6 11 11 8 1 . . . 2 12 9 6 4 . 1 Device 5 | . . . . . 8 3 7 7 7 7 7 15 10 6 8 11 9 Storage 8 | . 14 11 11 11 11 8 7 7 7 7 7 6 6 6 6 6 4 Processor 5 | . . 11 2 . . 5 7 7 7 7 4 1 6 6 6 6 9 Protection 8 | . 13 10 19 22 13 17 . . . . . . 2 3 . 1 2 Energy Gun 2 | . 8 6 . . . . 1 . . . 2 6 . . . . . Energy Cannon 1 | . . . . . . . . . . . 3 8 5 . 3 6 1 Ballistic Gun 14 | . 19 13 22 . 21 26 17 19 15 7 8 2 9 4 6 6 2 Impact Weapon 1 | . . 1 . . . . 2 2 6 7 2 . 3 . . . 1 Naked Turns 36 | . . . . . . . . . . . . . . . . . 36 Heaviest Build 139 | 13 30 38 101 98 101 105 97 70 70 72 80 84 89 113 95 91 139 Greatest Support 140 | 40 40 69 69 12 12 12 90 54 54 54 84 34 47 12 140 140 140 Greatest Overweight (x) 11 | . 1 . 8 8 8 8 8 1 1 1 7 8 7 9 7 . 11 Average Overweight (x) 3 | . . . 4 7 8 7 1 1 1 1 2 3 4 7 3 . 2 Largest Inventory Capacity 25 | 8 15 15 25 25 25 25 25 20 20 20 20 20 20 20 20 20 25 Average Capacity 20 | 6 11 15 21 25 25 24 20 20 20 20 20 20 20 20 20 20 22 Most Carried 25 | 3 15 15 20 23 24 25 25 20 20 20 20 20 20 20 20 20 22 Average Carried 18 | 1 9 14 16 21 23 24 19 18 19 19 19 19 19 19 19 20 17 Final Capacity 25 | 8 15 15 25 25 25 25 20 20 20 20 20 20 20 20 20 20 5 Final Carried 25 | 2 15 15 20 23 24 25 19 20 20 20 16 19 20 20 20 20 5 Scrap Engine Consumption 139 | . . . . . . . 39 4 3 . 13 16 34 18 4 . 8 Constructs Created 10 | . . . . . . . 3 . 1 . 1 3 . 1 1 . . Constructs Modified 44 | . . . . . . . 9 3 . . 4 3 15 2 4 . 4 Class Distribution -------------------- 46% | Mutant 14% | Tank 11% | Construct 6% | Skirmisher 6% | Scavenger-Mutant 5% | Commander-Mutant 4% | Scavenger-Construct Dominant Class ---------------- Mutant | -10/Materials Mutant | -9/Materials Mutant | -9/Mines Commander-Mutant | -9/Exiles Mutant | -8/Mines Tank | -8/Materials Skirmisher | -7/Factory Mutant | -7/Lower Caves Mutant | -7/Lower Caves Mutant | -7/Data Miner Mutant | -6/Proximity Caves Mutant | -6/Factory Construct | -6/Extension Construct | -6/Cetus Construct | -6/Archives Construct | -6/Hub_04(d) Construct | -5/Factory Resources | -11 -10 -9 -9 -9 -8 -8 -7 -7 -7 -7 -6 -6 -6 -6 -6 -6 -5 ----------- Run | Scr Mat Mat Min Exi Min Mat Fac Low Low Dat Pro Fac Ext Cet Arc Hub Fac Matter Collected 7704 | 260 567 1004 111 . 188 1048 312 86 634 . 540 667 203 397 298 71 1318 Remotely 376 | . . . . . . . . . . . . . . . . . 376 Salvage Created 10319 | . 677 1966 5 . 110 1324 647 79 610 . 681 689 290 509 650 114 1968 Parts 563 | . 38 110 . . 7 85 44 9 10 . 30 34 12 30 36 5 113 Haulers Intercepted 12 | . 1 5 . . . 6 . . . . . . . . . . . Recyclers Shooed 6 | . . . . . . 3 . . . . . . . . . . 3 Parts Field Recycled . | . . . . . . . . . . . . . . . . . . Retrieved Matter . | . . . . . . . . . . . . . . . . . . Parts Self-Destructed 31 | . . . . . . . . 5 8 . 18 . . . . . . Prevented 4 | . . . . . . . . . . . 4 . . . . . . Kills | -11 -10 -9 -9 -9 -8 -8 -7 -7 -7 -7 -6 -6 -6 -6 -6 -6 -5 ------- Run | Scr Mat Mat Min Exi Min Mat Fac Low Low Dat Pro Fac Ext Cet Arc Hub Fac Combat Hostiles Destroyed 172 | . 17 42 . . . 17 10 5 7 . 18 14 2 6 4 1 29 Melee 2 | . . . . . . . . . . . . . . . . . 2 Guns 99 | . 17 38 . . . 13 7 1 3 . 6 2 2 3 2 1 4 Cannons 26 | . . . . . . . 1 . . . . 9 . 3 2 . 11 AOE 44 | . . 4 . . . 4 2 4 4 . 12 3 . . . . 11 Classes Destroyed 15 | . 5 5 . . 1 2 2 . . . . . . . . . . Worker 20 | . . 2 1 . 1 1 3 . . . . 1 . . . 1 10 Builder 25 | . . 1 . . . 4 3 . . . . . 2 . . . 15 Tunneler 2 | . . . . . 1 . . . . . . . . . . . 1 Hauler 12 | . 1 5 . . . 6 . . . . . . . . . . . Recycler 16 | . 1 3 . . 1 4 . . . . . 1 1 . . . 5 Operator 9 | . . 1 . . . . . . . . . . . . 8 . . Watcher 8 | . 1 3 . . . . . . . . . . . 1 . 1 2 Swarmer 35 | . 6 9 . . . 4 . 4 . . 2 5 . . . . 5 Grunt 73 | . 11 22 . . . 7 4 . 6 . 4 7 . 2 . . 10 Brawler 4 | . . . . . . 1 . . 1 . 2 . . . . . . Duelist 5 | . . . . . . . 1 . . . 3 . . 1 . . . Protector 2 | . . 1 . . . . . . . . 1 . . . . . . Sentry 28 | . . 10 . . . 4 2 . . . 2 1 2 . 4 1 2 Hunter 12 | . . . . . . 1 1 . . . 4 . . . . . 6 Programmer 11 | . . . . . . . 2 1 . . . 1 . 1 . . 6 Cetus Guard 2 | . . . . . . . . . . . . . . 2 . . . Packrat 1 | . . . . . . . . . 1 . . . . . . . . Best Kill Streak 19 | . 4 6 1 . 1 5 4 4 4 . 13 4 2 3 4 2 19 Combat Bots Only 13 | . 4 6 . . . 4 3 4 4 . 13 3 1 3 1 1 8 Max Kills in Single Turn 7 | . 1 2 1 . 1 3 2 2 3 . 2 3 1 1 2 1 7 Gunslinging 1 | . . 1 . . . . . . . . . . . . . . . Exploded 4 | . . 2 . . . 3 1 2 3 . 2 3 . . . . 4 Melee 1 | . . . . . . . . . . . . . . . . . 1 Uniques/NPCs Destroyed 2 | . . . . . . . . . . . . . . 2 . . . A7 (-6/Cetus) Revision 17 (-6/Cetus) Combat | -11 -10 -9 -9 -9 -8 -8 -7 -7 -7 -7 -6 -6 -6 -6 -6 -6 -5 -------- Run | Scr Mat Mat Min Exi Min Mat Fac Low Low Dat Pro Fac Ext Cet Arc Hub Fac Damage Taken 14572 | . 689 1699 . . 72 523 826 184 158 . 2739 568 388 525 514 312 5375 Core 2250 | . 122 222 . . 18 80 89 . 38 . 428 60 26 69 20 61 1017 Absorbed by Shields 246 | . . . . . . . . . . . . 32 52 . . . 162 Reduced by Siege Mode 12 | . . . . . . . . . . . . . . . . . 12 Redirected to Shielding 25 | . 25 . . . . . . . . . . . . . . . . Regen/Repaired (Parts) 2582 | . 130 202 . . . 451 226 59 . . 213 178 242 200 385 . 296 Core Remaining (%) 61 | 100 51 . . . 40 85 . . . . 20 . . . . 72 . Volleys Fired 635 | . 75 114 2 . 4 58 34 9 7 . 46 57 35 28 54 8 104 Largest 3 | . 2 2 1 . 1 3 3 3 2 . 3 3 2 2 2 2 2 Hottest 175 | . 85 88 23 . 36 81 109 80 52 . 121 175 90 101 109 165 165 Shots Fired 1102 | . 150 210 4 . 6 165 90 17 12 . 66 71 45 46 66 13 141 Gun 799 | . 150 204 4 . 5 163 86 11 10 . 47 6 10 19 21 7 56 Cannon 257 | . . . . . . . 2 . . . 6 64 35 27 45 6 72 Launcher 46 | . . 6 . . 1 2 2 6 2 . 13 1 . . . . 13 Special . | . . . . . . . . . . . . . . . . . . Kinetic 796 | . 130 131 4 . 5 163 83 11 10 . 47 13 19 25 38 13 104 Thermal 244 | . 20 73 . . . . 3 . . . . 49 26 21 28 . 24 Explosive 46 | . . 6 . . 1 2 2 6 2 . 13 1 . . . . 13 Electromagnetic 16 | . . . . . . . 2 . . . 6 8 . . . . . Robot Hit Streak 20 | . 13 15 1 . 1 12 8 4 15 . 17 13 20 8 14 6 13 Robot Miss Streak 10 | . 4 4 2 . 2 4 3 2 1 . 4 7 2 3 3 1 10 Penetration Max 1 | . . . . . . 1 1 . . . 1 1 . 1 1 . 1 Secondary Targets 9 | . 1 4 . . . 4 . . . . . . . . . . . Max Gunslinging Chain 1 | . 1 1 . . . 1 . . . . . . . . . . . Shots Hit Robots 739 | . 100 162 1 6 2 101 64 8 15 . 52 29 24 31 43 9 92 Core Hits 497 | . 33 77 1 . 5 48 35 8 23 . 60 34 7 11 15 4 136 Critical Kills 15 | . 2 2 . . . . 1 . . . . 1 . 2 3 . 4 Critical Parts Destroyed 25 | . . 6 . . . . 1 . . . 1 1 1 3 3 1 8 Critical Strikes 47 | . 4 9 . . . . 2 . . . 1 2 1 6 7 2 13 Burn 3 | . 2 1 . . . . . . . . . . . . . . . Destroy 29 | . 2 1 . . . . . . . . 1 2 . 6 7 2 8 Smash 15 | . . 7 . . . . 2 . . . . . 1 . . . 5 Melee Attacks 82 | . . 25 . 6 . . 10 1 6 . . 2 4 . . . 28 Impact 76 | . . 25 . . . . 10 1 6 . . 2 4 . . . 28 Slashing . | . . . . . . . . . . . . . . . . . . Piercing . | . . . . . . . . . . . . . . . . . . Sneak Attacks 25 | . . 8 . 6 . . 5 . 1 . . 1 4 . . . . Combat Hostiles 6 | . . . . 6 . . . . . . . . . . . . . Follow-up Attacks . | . . . . . . . . . . . . . . . . . . Damage Inflicted 25337 | . 1081 3796 27 . 128 2116 1810 544 914 . 2773 1194 962 1078 1923 424 6567 Guns 9443 | . 1038 2179 16 . 44 1991 1091 140 189 . 700 79 187 291 403 118 977 Cannons 5352 | . . . . . . . 22 . . . 145 692 411 787 1520 173 1602 Explosions 7204 | . . 570 . . 84 125 251 404 221 . 1928 325 . . . 133 3163 Melee 3133 | . . 998 . . . . 446 . 504 . . 98 284 . . . 803 Ramming 205 | . 43 49 11 . . . . . . . . . 80 . . . 22 Kinetic 10752 | . 829 1323 16 . 44 1991 1044 140 189 . 700 280 472 450 825 291 2158 Thermal 3908 | . 209 856 . . . . 47 . . . 144 379 126 628 1098 . 421 Explosive 6927 | . . 570 . . 84 125 251 404 221 . 1784 325 . . . . 3163 Electromagnetic 412 | . . . . . . . 22 . . . 145 112 . . . 133 . Impact 3133 | . . 998 . . . . 446 . 504 . . 98 284 . . . 803 Slashing . | . . . . . . . . . . . . . . . . . . Piercing . | . . . . . . . . . . . . . . . . . . Highest Corruption 13 | . . 6 6 6 6 . 3 3 3 3 7 3 3 6 6 1 13 Average Corruption 4 | . . 5 6 6 6 . 1 3 3 3 4 2 3 4 5 1 8 Corruption Purged 6 | . . . . . . . . . . . . . . . 6 . . Corruption Blocked . | . . . . . . . . . . . . . . . . . . Effects 245 | . . 39 25 23 27 . 11 15 9 1 14 5 25 11 13 . 27 Message Errors 59 | . . 6 4 9 5 . 4 5 1 1 2 2 9 3 4 . 4 Matter Fused 62 | . . 16 7 4 6 . 4 1 4 . 6 3 3 3 2 . 3 Heat Flow Errors 21 | . . 2 2 2 5 . . 1 2 . . . 4 1 1 . 1 Energy Discharges 35 | . . 1 7 5 3 . 2 3 . . 4 . 4 . 2 . 4 Parts Rejected 5 | . . 1 . . . . . . . . 1 . . . . . 3 Data Loss (minor) 23 | . . 6 . 1 . . 1 2 2 . . . 3 1 1 . 6 Data Loss (major) 13 | . . . 2 1 5 . . 1 . . . . . 1 1 . 2 Misfires 12 | . . 3 2 . 2 . . 2 . . 1 . 1 . . . 1 Alerts 8 | . . 2 1 1 1 . . . . . . . 1 1 . . 1 Misdirections 2 | . . . . . . . . . . . . . . . . . 2 Weapon Failures 5 | . . 2 . . . . . . . . . . . 1 2 . . Overload Shots . | . . . . . . . . . . . . . . . . . . Overflow Damage 2031 | . . 400 . . . . 180 . 400 . 31 6 151 57 152 31 623 Projectiles 396 | . . . . . . . . . . . . 6 24 57 152 8 149 Explosions 112 | . . . . . . . . . . . 31 . . . . 23 58 Melee 1523 | . . 400 . . . . 180 . 400 . . . 127 . . . 416 Knockbacks 36 | . . 3 . . . . 2 . 1 . . 9 2 . 5 1 13 Impact 10 | . . 3 . . . . 2 . 1 . . . 2 . . . 2 Kinetic 24 | . . . . . . . . . . . . 7 . . 5 1 11 Secondary 2 | . . . . . . . . . . . . 2 . . . . . Self-Inflicted Damage 1615 | . . . . . 54 . . 21 . . 353 . 24 . . 101 1062 Shots 60 | . . . . . 1 . . 1 . . 11 . . . . 1 46 Rammed 39 | . 10 8 1 . . . . . . . . . 15 . . . 5 Targets Rammed 42 | . 11 9 2 . . . . . . . . . 15 . . . 5 Kicked . | . . . . . . . . . . . . . . . . . . Crushed 3 | . 1 1 1 . . . . . . . . . . . . . . Highest Temperature 364 | . 208 364 201 153 240 355 168 243 275 . 120 234 267 169 320 241 352 Average Temperature 88 | . 56 94 95 72 101 80 49 169 109 . 34 61 79 75 121 110 115 Received Heat Transfer 3252 | . 294 789 . . 9 216 168 . 48 . 453 132 126 171 99 57 690 Effects 4 | . . . . . 2 1 . . . . . . . . . . 1 Energy Bleed 1 | . . . . . . . . . . . . . . . . . 1 Interference 2 | . . . . . 2 . . . . . . . . . . . . Matter Decay 1 | . . . . . . 1 . . . . . . . . . . . Siege Activations 1 | . . . . . . . . . . . . . . . . . 1 Total Turns 32 | . . . . . . . . . . . . . . . . . 32 Longest Duration 32 | . . . . . . . . . . . . . . . . . 32 Robots Corrupted . | . . . . . . . . . . . . . . . . . . Combat Hostiles . | . . . . . . . . . . . . . . . . . . Parts Fried 20 | . . 9 . . . . 7 . 2 . . . 2 . . . . Impact Corruptions 48 | . . 13 . . . . 6 . 10 . . . 5 . . . 14 Robots Melted . | . . . . . . . . . . . . . . . . . . Combat Hostiles . | . . . . . . . . . . . . . . . . . . Parts Melted 20 | . 4 4 . . . . . . . . . 1 3 1 7 . . Heat Transferred 5612 | . 666 2146 . . . . . . . . 127 611 175 481 814 . 592 Parts Sabotaged . | . . . . . . . . . . . . . . . . . . Parts Stolen . | . . . . . . . . . . . . . . . . . . Parts Stripped . | . . . . . . . . . . . . . . . . . . Power Chain Reactions 1 | . . . . . . . . . . . 1 . . . . . . Missiles Intercepted . | . . . . . . . . . . . . . . . . . . Alert | -11 -10 -9 -9 -9 -8 -8 -7 -7 -7 -7 -6 -6 -6 -6 -6 -6 -5 ------- Run | Scr Mat Mat Min Exi Min Mat Fac Low Low Dat Pro Fac Ext Cet Arc Hub Fac Peak Influence 1477 | . 298 1052 421 . 160 329 267 . . . . 292 368 471 313 211 1477 Initial 409 | . . 1 409 . . 62 128 . . . . 97 123 100 138 39 102 Average 262 | . 139 506 304 . 53 139 120 . . . . 154 195 328 195 103 597 Maximum Alert Level 4 | . 1 3 2 . . 1 1 . . . . 1 1 2 1 1 4 Low Security (%) 55 | 100 76 21 7 . 100 75 82 . . . . 74 46 10 50 82 27 Level 1 26 | . 23 16 46 . . 24 17 . . . . 25 53 64 49 17 22 Level 2 8 | . . 28 46 . . . . . . . . . . 24 . . 8 Level 3 8 | . . 33 . . . . . . . . . . . . . . 26 Level 4 1 | . . . . . . . . . . . . . . . . . 15 Level 5 . | . . . . . . . . . . . . . . . . . . High Security . | . . . . . . . . . . . . . . . . . . Max Security . | . . . . . . . . . . . . . . . . . . Squads Dispatched 53 | . 3 9 . . . 5 6 . . . 1 8 2 . . . 19 Investigation 18 | . 1 4 . . . 3 2 . . . . 3 . . . . 5 Extermination 6 | . . . . . . . 2 . . . . 1 . . . . 3 Reinforcement 18 | . 2 4 . . . 2 1 . . . . 1 2 . . . 6 Assault 4 | . . 1 . . . . . . . . 1 . . . . . 2 Garrison 7 | . . . . . . . 1 . . . . 3 . . . . 3 Intercept . | . . . . . . . . . . . . . . . . . . Searches Triggered . | . . . . . . . . . . . . . . . . . . Data Miner Redirects 6 | . . . . . . . . . . . . 2 . . . . 4 Construction Impeded 6 | . . 1 . . . . 1 . . . . . 1 . . . 3 Haulers Reinforced 1 | . . . . . . . . . . . . . . . . . 1 Active Scanning Responses . | . . . . . . . . . . . . . . . . . . Cargo Convoy Interrupts . | . . . . . . . . . . . . . . . . . . Stealth | -11 -10 -9 -9 -9 -8 -8 -7 -7 -7 -7 -6 -6 -6 -6 -6 -6 -5 --------- Run | Scr Mat Mat Min Exi Min Mat Fac Low Low Dat Pro Fac Ext Cet Arc Hub Fac Distress Signals 14 | . 2 4 . . . . 2 . . . . . 1 2 . 1 2 Communications Jammed 24 | . . . . . . . . . . . . . . . . . 24 Distress Signals 24 | . . . . . . . . . . . . . . . . . 24 Times Spotted 321 | . 34 65 . . 7 41 16 5 5 . 18 15 19 18 16 5 57 Peak Tracking Total 12 | . 7 7 . . 3 4 4 4 3 . 7 4 4 5 1 2 12 Tactical Retreats 20 | . 3 9 . . . . 2 . . . . 1 1 . . . 4 Traps | -11 -10 -9 -9 -9 -8 -8 -7 -7 -7 -7 -6 -6 -6 -6 -6 -6 -5 ------- Run | Scr Mat Mat Min Exi Min Mat Fac Low Low Dat Pro Fac Ext Cet Arc Hub Fac Traps Triggered 12 | . 1 3 . . . 2 . . . . . . 5 . . . 1 Indirectly . | . . . . . . . . . . . . . . . . . . Trap Hack Attempts . | . . . . . . . . . . . . . . . . . . Triggered . | . . . . . . . . . . . . . . . . . . Disarmed . | . . . . . . . . . . . . . . . . . . Reprogrammed . | . . . . . . . . . . . . . . . . . . Reused . | . . . . . . . . . . . . . . . . . . Traps Extracted . | . . . . . . . . . . . . . . . . . . Installed . | . . . . . . . . . . . . . . . . . . Triggered 2 | . . 1 . . . . . . . . . . . . . . 1 Machines | -11 -10 -9 -9 -9 -8 -8 -7 -7 -7 -7 -6 -6 -6 -6 -6 -6 -5 ---------- Run | Scr Mat Mat Min Exi Min Mat Fac Low Low Dat Pro Fac Ext Cet Arc Hub Fac Machines Disabled 43 | . . 3 . . 4 5 2 2 . . 1 1 1 1 4 4 15 Max in Single Turn 7 | . . 1 . . . 1 1 1 . . 1 1 1 . 1 1 7 Network Hub 1 | . . . . . . . . . . . . . . . . 1 . Machines Sabotaged . | . . . . . . . . . . . . . . . . . . Overloaded Fab Kills . | . . . . . . . . . . . . . . . . . . Hacking | -11 -10 -9 -9 -9 -8 -8 -7 -7 -7 -7 -6 -6 -6 -6 -6 -6 -5 --------- Run | Scr Mat Mat Min Exi Min Mat Fac Low Low Dat Pro Fac Ext Cet Arc Hub Fac Machines Accessed 75 | . 8 15 1 2 . 12 10 . . 4 . 9 2 . . . 12 Terminals 43 | . 6 9 1 . . 9 5 . . . . 5 2 . . . 6 Fabricators 8 | . . . . . . . 2 . . . . 2 . . . . 4 Repair Stations 6 | . 1 2 . . . 1 1 . . . . 1 . . . . . Recycling Units 3 | . 1 2 . . . . . . . . . . . . . . . Scanalyzers 8 | . . 2 . . . 2 1 . . . . 1 . . . . 2 Garrison Access 1 | . . . . . . . 1 . . . . . . . . . . Total Hacks 243 | . 27 42 2 2 . 39 28 . . 29 . 25 3 . . . 46 Successful 144 | . 16 28 1 2 . 21 14 . . 29 . 9 1 . . . 23 Failed 99 | . 11 14 1 . . 18 14 . . . . 16 2 . . . 23 Catastrophic 17 | . 1 2 . . . 1 3 . . . . 6 1 . . . 3 Database Lockouts . | . . . . . . . . . . . . . . . . . . Manual 64 | . 17 12 2 2 . 8 5 1 . . . 4 . 1 . . 12 Terminals 132 | . 23 25 2 . . 28 12 . . . . 11 3 . . . 28 Fabricators 23 | . . . . . . . 6 . . . . 6 . . . . 11 Repair Stations 28 | . 2 9 . . . 7 7 . . . . 3 . . . . . Recycling Units 4 | . 2 2 . . . . . . . . . . . . . . . Scanalyzers 24 | . . 6 . . . 4 2 . . . . 5 . . . . 7 Garrison Access 1 | . . . . . . . 1 . . . . . . . . . . Terminal Hacks 75 | . 7 12 1 2 . 10 6 . . 29 . 1 1 . . . 6 Record 12 | . . . . 1 . . . . . 11 . . . . . . . Part Schematic 14 | . . 1 1 . . . . . . 10 . . 1 . . . 1 Robot Schematic 6 | . . . . . . . 1 . . 5 . . . . . . . Robot Analysis 4 | . . 4 . . . . . . . . . . . . . . . Prototype ID Bank 14 | . 4 2 . . . 3 2 . . 3 . . . . . . . Branch Access Points 5 | . . 1 . . . 1 1 . . . . 1 . . . . 1 Machine Index 1 | . . . . . . . . . . . . . . . . . 1 Alert Level 2 | . . . . . . . . . . . . . . . . . 2 Unreport Threat 3 | . 1 1 . . . 1 . . . . . . . . . . . Locate Traps 7 | . 1 2 . . . 3 1 . . . . . . . . . . Maintenance Status 1 | . . . . . . . . . . . . . . . . . 1 Recall Investigation 1 | . . . . . . 1 . . . . . . . . . . . Recall Reinforcements 1 | . . . . . . 1 . . . . . . . . . . . Hauler Manifests 2 | . 1 . . . . . 1 . . . . . . . . . . Zone Layout 1 | . . 1 . . . . . . . . . . . . . . . EX-Prototype ID Bank 1 | . . . . 1 . . . . . . . . . . . . . Fabricator Hacks 14 | . . . . . . . 3 . . . . 4 . . . . 7 Network Status 2 | . . . . . . . 1 . . . . 1 . . . . . Load Schematic 7 | . . . . . . . 1 . . . . 2 . . . . 4 Build 5 | . . . . . . . 1 . . . . 1 . . . . 3 Repair Station Hacks 18 | . 2 7 . . . 6 2 . . . . 1 . . . . . Scan Component 10 | . 1 4 . . . 3 2 . . . . . . . . . . Repair 7 | . 1 3 . . . 3 . . . . . . . . . . . Refit 1 | . . . . . . . . . . . . 1 . . . . . Recycling Unit Hacks . | . . . . . . . . . . . . . . . . . . Scanalyzer 17 | . . 6 . . . 4 . . . . . 2 . . . . 5 Insert Component 9 | . . 3 . . . 2 . . . . . 1 . . . . 3 Analyze 8 | . . 3 . . . 2 . . . . . 1 . . . . 2 Garrison Access Hacks . | . . . . . . . . . . . . . . . . . . Unauthorized Hacks 20 | . 7 3 . . . 1 3 . . . . 1 . . . . 5 Terminals 14 | . 6 1 . . . 1 1 . . . . . . . . . 5 Track 1 | . . . . . . . . . . . . . . . . . 1 Assimilate 2 | . . . . . . . 1 . . . . . . . . . 1 Botnet 7 | . 4 1 . . . . . . . . . . . . . . 2 Operators 4 | . 2 . . . . 1 . . . . . . . . . . 1 Fabricators 3 | . . . . . . . 2 . . . . 1 . . . . . Liberate 1 | . . . . . . . 1 . . . . . . . . . . Recompile 2 | . . . . . . . 1 . . . . 1 . . . . . Repair Stations . | . . . . . . . . . . . . . . . . . . Recycling Units 3 | . 1 2 . . . . . . . . . . . . . . . Tunnel 3 | . 1 2 . . . . . . . . . . . . . . . Scanalyzers . | . . . . . . . . . . . . . . . . . . Garrison Access . | . . . . . . . . . . . . . . . . . . Data Cores Recovered . | . . . . . . . . . . . . . . . . . . Used . | . . . . . . . . . . . . . . . . . . Hacking Detections 62 | . 7 12 1 . . 11 9 . . . . 8 2 . . . 12 Full Trace Events 12 | . . 2 . . . 2 1 . . . . 2 . . . . 5 Feedback Events 1 | . . . . . . . . . . . . 1 . . . . . Corruption 1 | . . . . . . . . . . . . 1 . . . . . Feedback Blocked . | . . . . . . . . . . . . . . . . . . Robot Schematics Acquired 6 | . . . . . . . 1 . . 5 . . . . . . . Robots Built . | . . . . . . . . . . . . . . . . . . Authchips . | . . . . . . . . . . . . . . . . . . Time . | . . . . . . . . . . . . . . . . . . Total Robot Build Rating . | . . . . . . . . . . . . . . . . . . Part Schematics Acquired 22 | . . 4 1 . . 2 . . . 10 . 1 1 . . . 3 Parts Built 4 | . . . . . . . 1 . . . . 2 . . . . 1 Authchips 1 | . . . . . . . . . . . . 1 . . . . . Time 435 | . . . . . . . 42 . . . . 62 . . . . 331 Total Part Build Rating 9 | . . . . . . . 4 . . . . 4 . . . . 1 Parts Repaired 7 | . 1 3 . . . 3 . . . . . . . . . . . Time 205 | . 13 90 . . . 102 . . . . . . . . . . . Parts Recycled . | . . . . . . . . . . . . . . . . . . Recycled Matter . | . . . . . . . . . . . . . . . . . . Retrieved Matter . | . . . . . . . . . . . . . . . . . . Retrieved Components . | . . . . . . . . . . . . . . . . . . Parts Scanalyzed 9 | . . 3 . . . 2 . . . . . 1 . . . . 3 Part Schematics Acquired 8 | . . 3 . . . 2 . . . . . 1 . . . . 2 Parts Damaged 1 | . . . . . . . . . . . . . . . . . 1 Bothacking | -11 -10 -9 -9 -9 -8 -8 -7 -7 -7 -7 -6 -6 -6 -6 -6 -6 -5 ------------ Run | Scr Mat Mat Min Exi Min Mat Fac Low Low Dat Pro Fac Ext Cet Arc Hub Fac Used RIF Installer . | . . . . . . . . . . . . . . . . . . Robots Hacked . | . . . . . . . . . . . . . . . . . . Non-combat . | . . . . . . . . . . . . . . . . . . Combat . | . . . . . . . . . . . . . . . . . . Robot Hacks Applied . | . . . . . . . . . . . . . . . . . . Relay Couplers Released . | . . . . . . . . . . . . . . . . . . Fabnet Peak Effective % . | . . . . . . . . . . . . . . . . . . Robots Rewired 12 | . . . . 4 . . . . . . 1 . 7 . . . . Allies Hacked . | . . . . . . . . . . . . . . . . . . Hacks Repelled . | . . . . . . . . . . . . . . . . . . Allies | -11 -10 -9 -9 -9 -8 -8 -7 -7 -7 -7 -6 -6 -6 -6 -6 -6 -5 -------- Run | Scr Mat Mat Min Exi Min Mat Fac Low Low Dat Pro Fac Ext Cet Arc Hub Fac Total Allies 28 | . . . 3 4 . . 3 . . . 2 . 15 . . . 1 Largest Group 6 | . . . 3 6 6 2 2 . . . 1 1 5 5 . . 1 Highest-Rated Group 287 | . . . 40 82 82 39 53 . . . 96 32 287 282 . . 26 Highest-Rated Ally 159 | . . . 16 21 21 21 32 . . . 96 32 159 159 . . 26 Total Orders 6 | . . . . . . . 2 . . . . 2 2 . . . . STAY 3 | . . . . . . . 1 . . . . 1 1 . . . . FOLLOW 3 | . . . . . . . 1 . . . . 1 1 . . . . Ally Attacks 217 | . . . 5 . 22 23 5 . . . 6 5 102 49 . . . Total Damage 5361 | . . . 52 . 452 452 236 . . . 170 182 2528 1289 . . . Kills 53 | . . . 2 . 7 7 1 . . . . 1 22 13 . . . Allies Corrupted 1 | . . . 1 . . . . . . . . . . . . . . Allies Melted 1 | . . . . . . . 1 . . . . . . . . . . Intel | -11 -10 -9 -9 -9 -8 -8 -7 -7 -7 -7 -6 -6 -6 -6 -6 -6 -5 ------- Run | Scr Mat Mat Min Exi Min Mat Fac Low Low Dat Pro Fac Ext Cet Arc Hub Fac Robot Analysis Total 4 | . . 4 . . . . . . . . . . . . . . . Derelict Logs Recovered 5 | . . . 2 . . . . 1 1 . 1 . . . . . . Drone Launches . | . . . . . . . . . . . . . . . . . . Drone Recoveries . | . . . . . . . . . . . . . . . . . . Exploration | -11 -10 -9 -9 -9 -8 -8 -7 -7 -7 -7 -6 -6 -6 -6 -6 -6 -5 ------------- Run | Scr Mat Mat Min Exi Min Mat Fac Low Low Dat Pro Fac Ext Cet Arc Hub Fac Turns Passed 19140 | 80 1459 2650 869 874 998 3318 1557 707 617 144 760 944 1214 498 668 108 1675 Spaces Moved 8730 | 46 717 1228 447 438 457 1378 778 353 299 75 362 514 546 181 174 53 684 Core 201 | 4 . . . . . . . . . . . . . . . . 197 Treads 3214 | 42 717 1228 206 . . . 587 . . . 3 . 5 . 75 53 298 Legs 1037 | . . . . . . . 53 353 299 75 209 . 33 . 3 . 12 Wheels 4278 | . . . 241 438 457 1378 138 . . . 150 514 508 181 96 . 177 Hover . | . . . . . . . . . . . . . . . . . . Flight . | . . . . . . . . . . . . . . . . . . Fastest Speed 50 | 50 160 160 160 195 210 105 160 190 190 190 118 101 101 180 152 152 50 Average Speed 176 | 150 160 160 186 195 210 209 169 190 190 190 166 131 161 202 179 152 157 Slowest Speed 852 | 160 240 160 210 210 210 210 240 190 190 190 240 200 195 225 276 152 852 Overloaded Moves . | . . . . . . . . . . . . . . . . . . Propulsion Burnouts . | . . . . . . . . . . . . . . . . . . Robots Hopped . | . . . . . . . . . . . . . . . . . . Cave-ins Triggered . | . . . . . . . . . . . . . . . . . . Exploration Rate (%) 61 | 4 99 97 99 90 94 85 19 56 54 72 69 13 67 69 86 13 24 Regions Visited 17 Branch Regions 11 Pre-discovered Areas 7 | . 1 2 1 1 . . . . 1 1 . . . . . . . Known Exits Taken 3 | . . 1 . . . . 1 . . . . 1 . . . . . Unknown Exits Taken 14 | 1 1 . 1 1 1 1 . 1 1 1 1 . 1 1 1 1 . Scrap Searched 6 | . . . 2 . 1 . . . 2 . 1 . . . . . . Spaces Dug 103 | . . 2 . . . . 5 . 11 . 9 10 9 . . . 57 Terrain Destroyed 751 | . . 33 . . 18 19 16 40 21 . 72 53 22 8 12 167 270 Melee 16 | . . 2 . . . . 5 . 1 . . . . . . . 8 Projectile 140 | . . . . . . 1 . . . . 2 33 22 8 12 5 57 AOE 594 | . . 31 . . 18 18 11 39 20 . 70 20 . . . 162 205 Terrain Rammed . | . . . . . . . . . . . . . . . . . . Walls Destroyed . | . . . . . . . . . . . . . . . . . . Machines Disabled . | . . . . . . . . . . . . . . . . . . Actions | -11 -10 -9 -9 -9 -8 -8 -7 -7 -7 -7 -6 -6 -6 -6 -6 -6 -5 --------- Run | Scr Mat Mat Min Exi Min Mat Fac Low Low Dat Pro Fac Ext Cet Arc Hub Fac Total 11285 | 54 892 1671 478 457 489 1705 952 373 322 77 452 705 801 272 463 66 1056 Wait 1034 | . 63 186 16 1 19 168 66 2 3 . 6 79 36 13 221 3 152 Move 8713 | 45 716 1227 446 437 456 1377 777 352 298 74 361 513 545 180 173 52 684 Hop . | . . . . . . . . . . . . . . . . . . Pick Up 152 | 3 18 22 6 4 2 42 12 2 1 1 2 13 1 8 5 . 10 Fast Attach 67 | 5 2 7 . . 1 10 9 . . . 6 4 2 12 2 . 7 Attach 53 | 1 2 5 1 1 1 2 4 . . 1 4 6 2 3 2 . 18 Detach 28 | . . . 1 2 . 1 6 . . . . 2 2 3 2 . 9 Swap 156 | . 1 33 3 1 5 17 6 5 6 . 10 18 12 4 . 3 32 Drop 166 | . 4 43 1 2 1 30 28 2 1 1 6 11 4 21 4 . 7 Fire 635 | . 75 114 2 . 4 58 34 9 7 . 46 57 35 28 54 8 104 Melee 82 | . . 25 . 6 . . 10 1 6 . . 2 4 . . . 28 Ram 12 | . . . . . . . . . . . . . 8 . . . 4 Kick . | . . . . . . . . . . . . . . . . . . Crush 30 | . 11 9 2 . . . . . . . . . 7 . . . 1 Escape Stasis 40 | . . . . . . . . . . . . . 40 . . . . Rewire 117 | . . . . 3 . . . . . . 11 . 103 . . . . Trap . | . . . . . . . . . . . . . . . . . . Miscellaneous . | . . . . . . . . . . . . . . . . . . Route ------- -11/Scrapyard -10/Materials (discovered 4 exits: *Mat x3 / [*Min]) -9/Materials (discovered 4 exits: *Mat x3 / *Min) -9/Mines (discovered 3 exits: *Mat x2 / *Exi) -9/Exiles (discovered 2 exits: [*Min x2]) -8/Mines (discovered 2 exits: *Mat x2) -8/Materials -7/Factory (discovered 4 exits: Sto x2 / *Low x2) -7/Lower Caves -7/Lower Caves -7/Data Miner -6/Proximity Caves -6/Factory (discovered 4 exits: Low x2 / *Ext x2) -6/Extension (discovered 2 exits: *Fac / *Cet) -6/Cetus (discovered 2 exits: *Fac / [*Arc]) -6/Archives (discovered 3 exits: *Fac / [*Hub x2]) -6/Hub_04(d) -5/Factory (discovered 2 exits: Upp x2) History --------- Turn | Location | Event 6 | -11/Scrapyard | Discovered new exit (range 15) 81 | -11/Scrapyard | Entered Materials 286 | -10/Materials | Discovered new exit (range 3) 313 | -10/Materials | Build established: Mutant 548 | -10/Materials | Discovered new exit (range 13) 833 | -10/Materials | Repaired Lgt. Treads 1206 | -10/Materials | Discovered new exit (range 4) 1307 | -10/Materials | Discovered new exit (range 14) 1540 | -10/Materials | Entered another Materials area 1540 | -9/Materials | Evolved 2 slots: Propulsion x1, Utility x1 2239 | -9/Materials | Discovered new exit (range 4) 2436 | -9/Materials | Discovered new exit (range 8) 2484 | -9/Materials | Repaired Imp. Treads 2511 | -9/Materials | Repaired Lgt. Armor Plating 2562 | -9/Materials | Identified exit to Mines 2589 | -9/Materials | Build established: Scavenger-Mutant 3017 | -9/Materials | Discovered new exit (range 8) 3347 | -9/Materials | Core integrity fell below 50% 3534 | -9/Materials | Discovered new exit (range 16) 3859 | -9/Materials | Build established: Mutant 3899 | -9/Materials | Repaired Imp. Treads? 3940 | -9/Materials | First assault squad dispatched 4190 | -9/Materials | Entered Mines 4379 | -9/Mines | Deemed a non-threat by the Exiles lab entrance 4379 | -9/Mines | Discovered new exit (range 5) 4405 | -9/Mines | Received a Rocket Launcher from a helpful Derelict 4433 | -9/Mines | Discovered new exit (range 5) 4494 | -9/Mines | Learned Materials emergency access door positions 4602 | -9/Mines | Assisted by bots powering up and referring to "LRC-V3" 4644 | -9/Mines | Learned location of Storage (-7) 4941 | -9/Mines | Discovered new exit (range 6) 5059 | -9/Mines | Entered Exiles 5059 | -9/Exiles | Found Exiles lab destroyed 5059 | -9/Exiles | Accompanied by 2 allies 5171 | -9/Exiles | Discovered new exit (range 14) 5662 | -9/Exiles | Build established: Commander-Mutant 5711 | -9/Exiles | Opened EX-Vault 5727 | -9/Exiles | Found Trap Reconfigurator 5831 | -9/Exiles | Learned location of Zion (-6) 5903 | -9/Exiles | Discovered new exit (range 14) 5933 | -9/Exiles | Entered Mines 5933 | -8/Mines | Accompanied by 6 allies 6121 | -8/Mines | Discovered new exit (range 5) 6594 | -8/Mines | Discovered new exit (range 14) 6652 | -8/Mines | Build established: Mutant 6931 | -8/Mines | Entered Materials 6931 | -8/Materials | Accompanied by 2 allies 6931 | -8/Materials | Evolved 2 slots: Utility x1, Weapon x1 7274 | -8/Materials | Repaired Huge Storage Unit 7410 | -8/Materials | Repaired Gauss Rifle 7444 | -8/Materials | Repaired Arm. Wheel 7577 | -8/Materials | Discovered new exit (range 5) 7696 | -8/Materials | Build established: Tank 9435 | -8/Materials | Build established: Mutant 9783 | -8/Materials | Build established: Tank 10249 | -8/Materials | Entered Factory 10249 | -7/Factory | Evolved 2 slots: Power x1, Propulsion x1 10251 | -7/Factory | Found Scrap Engine 10368 | -7/Factory | Garrison activated, responded to threat 10450 | -7/Factory | Identified exit to Storage 10450 | -7/Factory | Identified exit to Lower Caves 10659 | -7/Factory | Build established: Skirmisher 10880 | -7/Factory | Fabricated Imp. EM Pulse Cannon? 11558 | -7/Factory | Build established: Mutant 11806 | -7/Factory | Entered Lower Caves 12052 | -7/Lower Caves | Found Alien Artifact 12223 | -7/Lower Caves | Discovered new exit (range 10) 12308 | -7/Lower Caves | Learned Factory security intel 12438 | -7/Lower Caves | Acquired the password to a Derelict Tinkerer's latest research 12451 | -7/Lower Caves | Found Prototype Special Weapon 12513 | -7/Lower Caves | Entered another Lower Caves area 12715 | -7/Lower Caves | Encountered a Warlord checkpoint 13086 | -7/Lower Caves | Discovered new exit (range 14) 13117 | -7/Lower Caves | Spotted B-75 Beast 13130 | -7/Lower Caves | Entered Data Miner 13130 | -7/Data Miner | Discovered new exit (range 6) 13159 | -7/Data Miner | Met Data Miner 13203 | -7/Data Miner | Learned location of Section 7 (-2) 13203 | -7/Data Miner | Acquired the access code to Warlord's prototype stash 13228 | -7/Data Miner | Received God Mode back door access code from Data Miner 13274 | -7/Data Miner | Entered Proximity Caves 13276 | -6/Proximity Caves | Attracted the attention of an 0b10 checkpoint 13691 | -6/Proximity Caves | Learned Factory security intel 13780 | -6/Proximity Caves | Attracted the attention of an 0b10 outpost 13795 | -6/Proximity Caves | Core integrity fell below 50% 13860 | -6/Proximity Caves | Lost 10 parts (2p3n2u3w) 13870 | -6/Proximity Caves | Destroyed 13 combat bots 14010 | -6/Proximity Caves | Discovered new exit (range 12) 14034 | -6/Proximity Caves | Entered Factory 14034 | -6/Factory | Accompanied by 1 ally 14034 | -6/Factory | Evolved 2 slots: Propulsion x1, Utility x1 14153 | -6/Factory | Identified exit to Lower Caves 14153 | -6/Factory | Identified exit to Extension 14277 | -6/Factory | Fabricated Arm. Wheel? 14280 | -6/Factory | Garrison activated, responded to threat 14461 | -6/Factory | Found Prototype Launcher 14461 | -6/Factory | Identified Scatter Rocket Array 14476 | -6/Factory | Incoming investigation squad redirected 14798 | -6/Factory | Incoming investigation squad redirected 14978 | -6/Factory | Entered Extension 15020 | -6/Extension | Rescued a captive Derelict 15044 | -6/Extension | Rescued a captive Derelict 15045 | -6/Extension | Rescued a captive Derelict 15300 | -6/Extension | Rescued A7 15437 | -6/Extension | Rescued a captive Derelict 15595 | -6/Extension | Build established: Construct 15646 | -6/Extension | Rescued a captive Derelict 15744 | -6/Extension | Spotted B-75 Beast 15873 | -6/Extension | Rescued a captive Derelict 15875 | -6/Extension | Rescued a captive Derelict 16157 | -6/Extension | Discovered new exit (range 10) 16159 | -6/Extension | Discovered new exit (range 6) 16192 | -6/Extension | Entered Cetus 16192 | -6/Cetus | Accompanied by 5 allies (A7) 16197 | -6/Cetus | Acquired a Cetus Manufacturing Module code from A7 16217 | -6/Cetus | Spotted Cetus Guard 16217 | -6/Cetus | Spotted Cetus Guard 16219 | -6/Cetus | Spotted Cetus Guard 16219 | -6/Cetus | Spotted Cetus Guard 16225 | -6/Cetus | Allies destroyed Cetus Guard 16237 | -6/Cetus | Allies destroyed Cetus Guard 16239 | -6/Cetus | Destroyed Cetus Guard 16245 | -6/Cetus | Allies destroyed Cetus Guard 16317 | -6/Cetus | Cetus Manufacturing Module disabled 16363 | -6/Cetus | Failed to start Cetus Manufacturing Module 16368 | -6/Cetus | Destroyed A7 16381 | -6/Cetus | Extracted ID and sensor layout for unrecognized location from A7's data core 16412 | -6/Cetus | Discovered new exit (range 22) 16465 | -6/Cetus | Spotted Cetus Guard 16465 | -6/Cetus | Spotted Cetus Guard 16465 | -6/Cetus | Allies destroyed Cetus Guard 16468 | -6/Cetus | Spotted Cetus Guard 16469 | -6/Cetus | Allies destroyed Cetus Guard 16469 | -6/Cetus | Spotted Cetus Guard 16473 | -6/Cetus | Discovered new exit (range 22) 16475 | -6/Cetus | Allies destroyed Cetus Guard 16485 | -6/Cetus | Destroyed Cetus Guard 16506 | -6/Cetus | Met Revision 17 16513 | -6/Cetus | Destroyed Revision 17 16690 | -6/Cetus | Entered Archives 16812 | -6/Archives | Build established: Scavenger-Construct 16907 | -6/Archives | Discovered new exit (range 22) 16948 | -6/Archives | Discovered new exit (range 22) 16956 | -6/Archives | Discovered new exit (range 22) 17170 | -6/Archives | Build established: Construct 17358 | -6/Archives | Entered Hub_04(d) 17358 | -6/Hub_04(d) | Discovered new exit (range 10) 17447 | -6/Hub_04(d) | Network Hub disabled 17466 | -6/Hub_04(d) | Entered Factory 17466 | -5/Factory | Evolved 2 slots: Utility x2 17595 | -5/Factory | Fabricated Huge Storage Unit? 18071 | -5/Factory | Found Rocket Array 18091 | -5/Factory | Build established: Scavenger-Construct 18095 | -5/Factory | Identified exit to Upper Caves 18400 | -5/Factory | Destroyed 8 combat bots 18436 | -5/Factory | Garrison activated, responded to threat 18530 | -5/Factory | Incoming investigation squad redirected 18617 | -5/Factory | Lost 5 parts (1p1n3w) 18776 | -5/Factory | System corruption reached 10% 18945 | -5/Factory | Destroyed 7 combat bots 18951 | -5/Factory | Core integrity fell below 50% 18955 | -5/Factory | Released all parts (6) 18966 | -5/Factory | First assault squad dispatched 18971 | -5/Factory | Identified Dimensional Node Initializer 18971 | -5/Factory | Initialized slip node 18975 | -5/Factory | Lost 8 parts (1p3n3u1w) 18984 | -5/Factory | Incoming assault squad redirected 19065 | -5/Factory | Incoming investigation squad redirected 19093 | -5/Factory | Incoming investigation squad redirected 19126 | -5/Factory | Core integrity fell below 20% 19141 | -5/Factory | Destroyed by Y-64 Sentinel with Wave Gun Last Messages --------------- 19091_ T 2P WRPH=JIZURCJNXPAPICA7AYIGPFAX 19091_ ALERT: Suspicious intruders detected, dispatching Specialist reinforcements to area. 19093_ ALERT: Higher priority target reported, redirecting investigation. 19096_ T-07 Excavator is excavating. 19105_ Penetrated by Slug. 19107_ Acquired Hvy. Treads. 19108_ System corrupted: Matter fused (-9). 19111_ Acquired Adv. Hacking Suite. 19112_ Slug penetrates Wall. 19115_ Slug penetrates G-50 Soldier. 19115_ Slammed into Y-64 Sentinel. 19118_ Slug penetrates G-50 Soldier. 19120_ Imp. Carbon-fiber Leg destroyed. 19121_ T-07 Excavator is excavating. 19124_ System corrupted: Hvy. Treads rejected. 19125_ Penetrated by Slug. 19125_ T-07 Excavator is excavating. 19140_ Slammed into G-50 Soldier. 19141_ Critical hit (Burn: +37). Map ----- +----------------------------------------------------+ | ?????????????????????????????????????????????????? | | ?????????????????????????????????????????????????? | | ?????????????????????????????????????????????????? | | ?????????????????? ????????????????????????????? | | ?????????????????? ????????????????????????????? | | ?????????????????? ????????????????????????????? | | ?????????????????? ????????????????????????????? | | ?????????????????? ????????????????????????????? | | ?????????????????? ????????????????????????????? | | ?????????????????? ????????????????????????????? | | ?????????????????? ????????????????????????????? | | ??????????????????# #????????????????????????????? | | ????????? ??????# #????????????????????????????? | | ??????? ??????# #????????????????????????????? | | ?????? ??????# #????????????????????????????? | | ??????# #?????# #????????????????????????????? | | ??????# #?????# #????????????????????????????? | | ??????# #?????# #????????????????????????????? | | ??????+ #?????# #????????????????????????????? | | ??????# #######/######???????????????????????? | | ??????# # Ruh #??????????????????>????? | | ??????# # """ """"" #???????????????????????? | | ??????# # """ "" F" ########????????????????? | | ??????# # """ "" ""g## #######??????????? | | ??????# # x gg## # #?????????? | | ??????# # """x""" [ @Yg t #?????????? | | ??????+ + """ """ g##gg # #??????????? | | ??????# # """ """ ## i #????????????????? | | ####### ^# ### ##????????????????? | | "T""" # # #?# #?????????????????? | | # / # ! ### #?????????????????? | | # # * ## #?????????????????? | | + ################ ##????????????????? | | " """ # #??????# # #????????????????? | | " """ # #????### # ####?????????????? | | " """ # #????# | + ??????? | | # #?????## # #########????????? | | ####### #??????# # #????????????????? | | # #??????# ! ### ###????????????????? | | + #??????########?# #??????????????????? | | #" #???????????????# #??????????????????? | | #%" #???????????????# #??????????????????? | | ?#" #???????????????? #??????????????????? | | ?# #???????????????? #??????????????????? | | ??# #???????????????? ??????????????????? | | ??# #????????????????##??????????????????? | | ???# #????????????????????????????????????? | | ###???# #????????????????????????????????????? | | ??????# #????????????????????????????????????? | | ??????# #??????##+#??????????????????????????? | +----------------------------------------------------+ Best States ------------- Heat Dissipation 67 Energy Generation 44 Energy Capacity 493 Matter Stores 300 Matter Capacity 300 Sight Range 22 Robot Scan Range 16 Terrain Scan Range 16 Terrain Scan Density 10 Jamming Range 12 Additional Mass Support 16 Armor Coverage 450 Resistance: KI 30 Resistance: EM 25 Core Shielding 20 Evasion (%) 55 Targeting Accuracy 5 Recoil Reduction 5 Offensive Hacking 14 Authchip Count 1 Item Schematics ----------------- Datajack | -9/Materials | Scanalyzed Maul | -9/Materials | Scanalyzed Com. Wheel | -9/Materials | Scanalyzed Huge Storage Unit | -9/Materials | Hacked Transport Network Coupler | -9/Mines | Hacked Arm. Wheel | -8/Materials | Scanalyzed Imp. Terrain Scanner | -8/Materials | Scanalyzed Combat Drone Bay | -7/Data Miner | Free Lgt. Regenerative Plating | -7/Data Miner | Free Exp. Power Shielding | -7/Data Miner | Free Cld. Aerolev Unit | -7/Data Miner | Free Ion Burst Cannon | -7/Data Miner | Free Field Propulsion Drive | -7/Data Miner | Free Imp. Weapon Cycler | -7/Data Miner | Free Imp. Plasma Cutter | -7/Data Miner | Free Gravmag Array | -7/Data Miner | Free Adv. Medium Treads | -7/Data Miner | Free Adv. Sensor Array | -6/Factory | Scanalyzed Myomer Leg | -6/Extension | Hacked Lyr. Heavy Armor Plating | -5/Factory | Hacked Centrium Heavy Treads | -5/Factory | Scanalyzed Imp. Shield Generator | -5/Factory | Scanalyzed Robot Schematics ------------------ B-48 Gladiator | -7/Factory | Hacked R-10 Processor | -7/Data Miner | Free H-66 Slayer | -7/Data Miner | Free Y-54 Guardian | -7/Data Miner | Free G-50 Soldier | -7/Data Miner | Free S-27 Virus | -7/Data Miner | Free Fabricated ------------ Imp. EM Pulse Cannon | x1 | -7/Factory | Preloaded Arm. Wheel | x2 | -6/Factory | Authchip Huge Storage Unit | x1 | -5/Factory Alien Tech Used ----------------- Dimensional Node Initializer Achievements -------------- None Challenges ------------ None Game ------ Seed PulseShockThruster Manual? 0 Play Time 03:38:03 Cumulative 354.3 hours Start 2022.12.06 @ 03:51:59 End 2022.12.08 @ 11:25:25 Sessions 11 Manual Loads 0 Difficulty Rogue Special Mode None Game No. 164 Rogue 164 Adventurer 0 Explorer 0 Win Type - Total 8 Types 5/0/1/1/0/0/0/1/0 Lore% 88 Gallery% 92 Achievement% 70 Wizard Run 0 Options --------- ASCII 1 Keyboard 1 Movement Vi Keybinds 0 Fullscreen 2 Font 18/Cog Map View 76x50 Tactical HUD 1 Map Filters NONE Filters NONE Steam 0 RUN: fa198942-6490-49d0-8e3d-3ba492da70d1